fUSD/lending_fUSD_20250820
["ID","MTS","AMOUNT","RATE_DAILY","PERIOD"]
[380363404,1755704367054,-988.53,0.00030958,120]
[380363405,1755704367117,-783.62,0.00030958,120]
[380363406,1755704367184,-1566.11,0.00030958,120]
[380363407,1755704367247,-973.51,0.00030958,120]
[380363408,1755704367315,-400.0,0.00030958,120]
[380363409,1755704367387,-458.98,0.00030958,120]
[380363410,1755704367461,-1437.7,0.00030958,120]
[380363411,1755704367532,-410.01,0.00030958,120]
[380363412,1755704367606,-2106.18,0.00030958,120]
[380363413,1755704367676,-1334.88,0.00030958,120]
[380363414,1755704367744,-1068.77,0.00030958,120]
[380363415,1755704367808,-400.0,0.00030958,120]
[380363416,1755704367870,-1044.09,0.00030958,120]
[380363417,1755704367936,-517.33,0.00030958,120]
[380363418,1755704367997,-1847.89,0.00030958,120]
[380363419,1755704368063,-1164.31,0.00030958,120]
[380363420,1755704368130,-1081.05,0.00030958,120]
[380363421,1755704368197,-1429.52,0.00030958,120]
[380363422,1755704368262,-935.17,0.00030958,120]
[380363423,1755704368325,-400.0,0.00030958,120]
[380363424,1755704368391,-1032.41,0.00030958,120]
[380363425,1755704368451,-1075.23,0.00030958,120]
[380363426,1755704368513,-400.0,0.00030958,120]
[380363427,1755704368575,-812.94,0.00030958,120]
[380363428,1755704368638,-1344.41,0.00030958,120]
[380363429,1755704368699,-400.0,0.00030958,120]
[380363430,1755704368760,-1754.93,0.00030958,120]
[380363431,1755704368822,-606.67,0.00030958,120]
[380363432,1755704368883,-2032.33,0.00030958,120]
[380363433,1755704368945,-400.0,0.00030958,120]
[380363434,1755704369006,-400.0,0.00030958,120]
[380363435,1755704369067,-400.0,0.00030958,120]
[380363436,1755704369128,-639.29,0.00030958,120]
[380363437,1755704369191,-2642.61,0.00030958,120]
[380363438,1755704369253,-1094.83,0.00030958,120]
[380363439,1755704369315,-669.26,0.00030958,120]
[380363440,1755704369383,-500.17,0.00030958,120]
[380363441,1755704369446,-732.92,0.00030958,120]
[380363442,1755704369505,-1881.83,0.00030958,120]
[380363443,1755704369567,-400.0,0.00030958,120]
[380363444,1755704369626,-1508.63,0.00030958,120]
[380363445,1755704369688,-761.4,0.00030958,120]
[380363446,1755704369748,-1828.49,0.00030958,120]
[380363447,1755704369808,-1336.85,0.00030958,120]
[380363448,1755704369866,-400.0,0.00030958,120]
[380363449,1755704369922,-400.0,0.00030958,120]
[380363450,1755704369980,-400.0,0.00030958,120]
[380363451,1755704370034,-400.0,0.00030958,120]
[380363452,1755704370094,-427.33,0.00030958,120]
[380363453,1755704370153,-400.0,0.00030958,120]
[380363454,1755704370214,-400.0,0.00030958,120]
[380363455,1755704370276,-1543.09,0.00030958,120]
[380363456,1755704370332,-400.0,0.00030958,120]
[380363457,1755704370390,-1045.19,0.00030958,120]
[380363458,1755704370444,-400.0,0.00030958,120]
[380363459,1755704370503,-1529.96,0.00030958,120]
[380363460,1755704370562,-1579.2,0.00030958,120]
[380363461,1755704370631,-1002.76,0.00030958,120]
[380363462,1755704370705,-659.05,0.00030958,120]
[380363463,1755704370766,-413.4,0.00030958,120]
[380363464,1755704370824,-400.0,0.00030958,120]
[380363465,1755704370888,-400.0,0.00030958,120]
[380363466,1755704370950,-793.9,0.00030958,120]
[380363467,1755704371233,-400.0,0.00030958,120]
[380363468,1755704371295,-886.53,0.00030958,120]
[380363469,1755704371359,-986.8,0.00030958,120]
[380363470,1755704371421,-400.0,0.00030958,120]
[380363471,1755704371481,-400.0,0.00030958,120]
[380363472,1755704371541,-618.11,0.00030958,120]
[380363473,1755704371606,-1594.74,0.00030958,120]
[380363474,1755704371667,-400.0,0.00030958,120]
[380363475,1755704371725,-400.0,0.00030958,120]
[380363476,1755704371786,-898.93,0.00030958,120]
[380363477,1755704371850,-1378.0,0.00030958,120]
[380363478,1755704371916,-2178.59,0.00030958,120]
[380363479,1755704371977,-340.49280395,0.00030958,120]
[380363480,1755704372042,-669.63,0.00030958,120]
[380363481,1755704372105,-400.0,0.00030958,120]
[380363482,1755704372167,-758.69,0.00030958,120]
[380363483,1755704372226,-1782.97,0.00030958,120]
[380363484,1755704372288,-400.0,0.00030958,120]
[380363485,1755704372352,-873.12,0.00030958,120]
[380363486,1755704372411,-1265.56,0.00030958,120]
[380363487,1755704372465,-400.0,0.00030958,120]
[380363488,1755704372520,-400.0,0.00030958,120]
[380363489,1755704372571,-400.0,0.00030958,120]
[380363490,1755704372623,-1408.06,0.00030958,120]
[380363491,1755704372671,-400.0,0.00030958,120]
[380363492,1755704372723,-894.97,0.00030958,120]
[380363493,1755704372774,-400.0,0.00030958,120]
[380363494,1755704372826,-499.98,0.00030958,120]
[380363495,1755704372877,-1516.1,0.00030958,120]
[380363496,1755704372930,-568.57,0.00030958,120]
[380363497,1755704372978,-1076.16,0.00030958,120]
[380363498,1755704373037,-1592.07,0.00030958,90]
[380363499,1755704373098,-1251.82,0.00030958,120]
[380363500,1755704373162,-735.01,0.00030958,120]
[380363501,1755704373228,-1621.96,0.00030958,120]
[380363502,1755704373305,-517.32,0.00030958,120]
[380363503,1755704373373,-928.34,0.00030958,120]
[380363504,1755704373438,-1369.25,0.00030958,120]
[380363505,1755704373501,-1262.51,0.00030958,120]
[380363506,1755704373565,-400.0,0.00030958,120]
[380363507,1755704373627,-400.0,0.00030958,120]
[380363508,1755704373688,-400.0,0.00030958,120]
[380363509,1755704373750,-1324.59,0.00030958,120]
[380363510,1755704373808,-518.29,0.00030958,120]
[380363511,1755704373868,-1463.66,0.00030958,120]
[380363512,1755704373931,-405.99,0.00030958,120]
[380363513,1755704373992,-967.0,0.00030958,120]
[380363514,1755704374056,-917.08,0.00030958,120]
[380363515,1755704374118,-2119.93,0.00030958,120]
[380363516,1755704374182,-724.47,0.00030958,120]
[380363517,1755704374242,-400.0,0.00030958,120]
[380363518,1755704374304,-1445.47,0.00030958,120]
[380363519,1755704374363,-400.0,0.00030958,120]
[380363520,1755704374424,-1061.13,0.00030958,120]
[380363521,1755704374479,-1207.43,0.00030958,120]
[380363522,1755704374537,-1483.2,0.00030958,120]
[380363523,1755704374594,-400.0,0.00030958,120]
[380363524,1755704374653,-400.0,0.00030958,120]
[380363525,1755704374714,-428.84,0.00030958,120]
[380363526,1755704374775,-1210.13,0.00030958,120]
[380363527,1755704374837,-599.69,0.00030958,120]
[380363528,1755704374896,-400.0,0.00030958,120]
[380363529,1755704374957,-740.49,0.00030958,120]
[380363530,1755704375015,-1064.64,0.00030958,120]
[380363531,1755704375075,-434.08,0.00030958,120]
[380363532,1755704375136,-1525.7,0.00030958,120]
[380363533,1755704375198,-833.53,0.00030958,120]
[380363534,1755704375262,-816.7,0.00030958,120]
[380363535,1755704375330,-1407.72,0.00030958,120]
[380363536,1755704375394,-400.0,0.00030958,120]
[380363537,1755704375461,-1323.38,0.00030958,120]
[380363538,1755704375527,-400.0,0.00030958,120]
[380363539,1755704375592,-1711.86,0.00030958,120]
[380363540,1755704375661,-400.0,0.00030958,120]
[380363541,1755704375723,-1247.11,0.00030958,120]
[380363542,1755704375786,-1529.7,0.00030958,120]
[380363543,1755704375853,-1203.94,0.00030958,120]
[380363544,1755704375916,-400.0,0.00030958,120]
[380363545,1755704375977,-686.73,0.00030958,120]
[380363546,1755704376041,-1038.41,0.00030958,120]
[380363547,1755704376109,-599.44,0.00030958,120]
[380363548,1755704376186,-400.0,0.00030958,120]
[380363549,1755704376252,-594.6,0.00030958,120]
[380363550,1755704376319,-1151.24,0.00030958,120]
[380363551,1755704376384,-1524.89,0.00030958,120]
[380363552,1755704376451,-1071.06,0.00030958,120]
[380363553,1755704376516,-898.16,0.00030958,120]
[380363554,1755704376581,-1508.56,0.00030958,120]
[380363555,1755704376643,-2157.99,0.00030958,120]
[380363556,1755704376712,-400.0,0.00030958,120]
[380363557,1755704376776,-638.08,0.00030958,120]
[380363558,1755704376843,-958.36,0.00030958,120]
[380363559,1755704376907,-467.02,0.00030958,120]
[380363560,1755704376972,-400.0,0.00030958,120]
[380363561,1755704377037,-400.0,0.00030958,120]
[380363562,1755704377525,-479.94,0.00030958,120]
[380363563,1755704377589,-533.16,0.00030958,120]
[380363564,1755704377652,-400.0,0.00030958,120]
[380363565,1755704377715,-415.41,0.00030958,120]
[380363566,1755704377780,-961.35,0.00030958,120]
[380363567,1755704377842,-1556.63,0.00030958,120]
[380363568,1755704377904,-400.0,0.00030958,120]
[380363569,1755704377970,-400.0,0.00030958,120]
[380363570,1755704378032,-400.0,0.00030958,120]
[380363571,1755704378094,-1388.72,0.00030958,120]
[380363572,1755704378158,-1000.0,0.00030958,120]
[380363573,1755704378219,-1020.24,0.00030958,120]
[380363574,1755704378284,-196.92956536,0.00030958,120]
[380363575,1755704378351,-756.19,0.00030958,120]
[380363576,1755704378413,-1119.32,0.00030958,120]
[380363577,1755704378472,-1212.88,0.00030958,120]
[380363578,1755704378535,-1321.35,0.00030958,120]
[380363579,1755704378595,-2593.96,0.00030958,120]
[380363580,1755704378654,-400.0,0.00030958,120]
[380363581,1755704378726,-411.19,0.00030958,120]
[380363582,1755704378792,-1378.26,0.00030958,120]
[380363583,1755704378856,-860.25,0.00030958,120]
[380363584,1755704378921,-400.0,0.00030958,120]
[380363585,1755704378981,-1247.29,0.00030958,120]
[380363586,1755704379048,-856.88,0.00030958,120]
[380363587,1755704379115,-400.0,0.00030958,120]
[380363588,1755704379182,-621.24,0.00030958,120]
[380363589,1755704379243,-1086.36,0.00030958,120]
[380363590,1755704379307,-400.0,0.00030958,120]
[380363591,1755704379372,-1400.33,0.00030958,120]
[380363592,1755704379435,-954.58,0.00030958,120]
[380363593,1755704379494,-1122.13,0.00030958,120]
[380363594,1755704379557,-400.0,0.00030958,120]
[380363595,1755704379616,-467.99,0.00030958,120]
[380363596,1755704379678,-400.0,0.00030958,120]
[380363597,1755704379738,-776.74,0.00030958,120]
[380363598,1755704379799,-745.56,0.00030958,120]
[380363599,1755704379858,-400.72,0.00030958,120]
[380363600,1755704379918,-400.0,0.00030958,120]
[380363601,1755704379979,-400.0,0.00030958,120]
[380363602,1755704380040,-668.78,0.00030958,120]
[380363603,1755704380105,-1890.76,0.00030958,120]
[380363604,1755704380163,-808.26,0.00030958,120]
[380363605,1755704380221,-1437.42,0.00030958,120]
[380363606,1755704380276,-400.0,0.00030958,120]
[380363607,1755704380334,-408.52,0.00030958,120]
[380363608,1755704380388,-400.0,0.00030958,120]
[380363609,1755704380444,-400.0,0.00030958,120]
[380363610,1755704380497,-995.33,0.00030958,120]
[380363611,1755704380557,-400.0,0.00030958,120]
[380363612,1755704380614,-607.8,0.00030958,120]
[380363613,1755704380675,-400.0,0.00030958,120]
[380363614,1755704380733,-550.3,0.00030958,120]
[380363615,1755704380786,-1879.06,0.00030958,120]
[380363616,1755704380844,-584.92,0.00030958,120]
[380363617,1755704380898,-1130.3,0.00030958,120]
[380363618,1755704380955,-1095.24,0.00030958,120]
[380363619,1755704381011,-1105.71,0.00030958,120]
[380363620,1755704381068,-400.0,0.00030958,120]
[380363621,1755704381123,-558.7,0.00030958,120]
[380363622,1755704381183,-2576.43,0.00030958,120]
[380363623,1755704381239,-432.16203213,0.00030958,120]
[380363624,1755704381300,-1221.29,0.00030958,120]
[380363625,1755704381357,-400.0,0.00030958,120]
[380363626,1755704381420,-400.0,0.00030958,120]
[380363627,1755704381480,-1290.49,0.00030958,120]
[380363628,1755704381539,-1328.46,0.00030958,120]
[380363629,1755704381599,-400.0,0.00030958,120]
[380363630,1755704381653,-400.0,0.00030958,120]
[380363631,1755704381710,-655.49,0.00030958,120]
[380363632,1755704381770,-547.67,0.00030958,120]
[380363633,1755704381832,-747.95,0.00030958,120]
[380363634,1755704381891,-400.0,0.00030958,120]
[380363635,1755704381950,-1919.54,0.00030958,120]
[380363636,1755704382005,-614.58,0.00030958,120]
[380363637,1755704382062,-1467.27,0.00030958,120]
[380363638,1755704382123,-1484.05,0.00030958,120]
[380363639,1755704382181,-1261.65,0.00030958,120]
[380363640,1755704382410,-821.76,0.00030958,120]
[380363641,1755704382474,-1102.57,0.00030958,120]
[380363642,1755704382533,-407.83,0.00030958,120]
[380363643,1755704382588,-836.61,0.00030958,120]
[380363644,1755704382638,-400.0,0.00030958,120]
[380363645,1755704382689,-1136.83,0.00030958,120]
[380363646,1755704382738,-1466.82,0.00030958,120]
[380363647,1755704382788,-1677.64,0.00030958,120]
[380363648,1755704382833,-410.2,0.00030958,120]
[380363649,1755704382882,-400.0,0.00030958,120]
[380363650,1755704382938,-716.18,0.00030958,120]
[380363651,1755704382987,-1316.67,0.00030958,120]
[380363652,1755704383038,-1051.67,0.00030958,120]
[380363653,1755704383100,-1081.7,0.00030958,120]
[380363654,1755704383159,-816.21,0.00030958,120]
[380363655,1755704383230,-1388.81,0.00030958,120]
[380363656,1755704383300,-400.0,0.00030958,120]
[380363657,1755704383369,-1723.19,0.00030958,120]
[380363658,1755704383427,-422.9,0.00030958,120]
[380363659,1755704383486,-562.4,0.00030958,120]
[380363660,1755704383553,-744.58,0.00030958,120]
[380363661,1755704383621,-1178.3,0.00030958,120]
[380363662,1755704383676,-400.0,0.00030958,120]
[380363663,1755704383731,-400.0,0.00030958,120]
[380363664,1755704383786,-400.0,0.00030958,120]
[380363665,1755704383841,-256.40016919,0.00030958,120]
[380363666,1755704383900,-1662.53,0.00030958,120]
[380363667,1755704383955,-400.0,0.00030958,120]
[380363668,1755704384013,-1096.26,0.00030958,120]
[380363669,1755704384080,-400.0,0.00030958,120]
[380363670,1755704384159,-1171.09,0.00030958,120]
[380363671,1755704384223,-400.0,0.00030958,120]
[380363672,1755704384286,-400.0,0.00030958,120]
[380363673,1755704384352,-471.29,0.00030958,120]
[380363674,1755704384417,-400.0,0.00030958,120]
[380363675,1755704384476,-400.0,0.00030958,120]
[380363676,1755704384541,-2219.35,0.00030958,120]
[380363677,1755704384604,-2231.4,0.00030958,120]
[380363678,1755704384668,-664.55,0.00030958,120]
[380363679,1755704384728,-1315.5,0.00030958,120]
[380363680,1755704384791,-1833.57,0.00030958,120]
[380363681,1755704384862,-400.0,0.00030958,120]
[380363682,1755704384927,-400.0,0.00030958,120]
[380363683,1755704384992,-400.0,0.00030958,120]
[380363684,1755704385066,-400.0,0.00030958,120]
[380363685,1755704385134,-766.99,0.00030958,120]
[380363686,1755704385202,-802.09,0.00030958,120]
[380363687,1755704385270,-1633.32,0.00030958,120]
[380363688,1755704385334,-400.0,0.00030958,120]
[380363689,1755704385402,-400.0,0.00030958,120]
[380363690,1755704385467,-1437.08,0.00030958,120]
[380363691,1755704385533,-400.0,0.00030958,120]
[380363692,1755704385596,-451.91,0.00030958,120]
[380363693,1755704385660,-1506.2,0.00030958,120]
[380363694,1755704385723,-1314.55,0.00030958,120]
[380363695,1755704385788,-897.94,0.00030958,120]
[380363696,1755704385850,-400.0,0.00030958,120]
[380363697,1755704385914,-400.0,0.00030958,120]
[380363698,1755704385970,-400.0,0.00030958,120]
[380363699,1755704386035,-1909.63,0.00030958,120]
[380363700,1755704386108,-845.46,0.00030958,120]
[380363701,1755704386177,-400.0,0.00030958,120]
[380363702,1755704386246,-1553.12,0.00030958,120]
[380363703,1755704386314,-565.39,0.00030958,120]
[380363704,1755704386378,-315.00245087,0.00030958,120]
[380363705,1755704386443,-400.0,0.00030958,120]
[380363706,1755704386507,-1193.79,0.00030958,120]
[380363707,1755704386572,-1393.64,0.00030958,120]
[380363708,1755704386637,-400.0,0.00030958,120]
[380363709,1755704386697,-791.35,0.00030958,120]
[380363710,1755704386758,-400.0,0.00030958,120]
[380363711,1755704386815,-1132.22,0.00030958,120]
[380363712,1755704386874,-900.25,0.00030958,120]
[380363713,1755704386929,-1591.84,0.00030958,120]
[380363714,1755704386984,-400.0,0.00030958,120]
[380363715,1755704387036,-1706.19,0.00030958,120]
[380363716,1755704387095,-1310.14,0.00030958,120]
[380363717,1755704387155,-400.0,0.00030958,120]
[380363718,1755704387220,-739.2,0.00030958,120]
[380363719,1755704387281,-400.0,0.00030958,120]
[380363720,1755704387337,-1264.17,0.00030958,120]
[380363721,1755704387398,-1769.16,0.00030958,120]
[380363722,1755704387456,-1593.56,0.00030958,120]
[380363723,1755704387511,-400.0,0.00030958,120]
[380363724,1755704387562,-435.86,0.00030958,120]
[380363725,1755704387614,-508.11,0.00030958,120]
[380363726,1755704387663,-427.54,0.00030958,120]
[380363727,1755704387717,-1191.55,0.00030958,120]
[380363728,1755704387766,-918.7,0.00030958,120]
[380363729,1755704387817,-400.0,0.00030958,120]
[380363730,1755704387871,-1099.75,0.00030958,120]
[380363731,1755704387923,-1567.06,0.00030958,120]
[380363732,1755704387973,-814.97,0.00030958,120]
[380363733,1755704388025,-591.32,0.00030958,120]
[380363734,1755704388088,-1335.27,0.00030958,120]
[380363735,1755704388148,-1151.72,0.00030958,120]
[380363736,1755704388210,-400.0,0.00030958,120]
[380363737,1755704388271,-2443.03,0.00030958,120]
[380363738,1755704388332,-952.89,0.00030958,120]
[380363739,1755704388390,-673.34,0.00030958,120]
[380363740,1755704388450,-1458.61,0.00030958,120]
[380363741,1755704388509,-1757.28,0.00030958,120]
[380363742,1755704388566,-400.0,0.00030958,120]
[380363743,1755704388622,-400.0,0.00030958,120]
[380363744,1755704388673,-1628.91,0.00030958,120]
[380363745,1755704388725,-1052.77,0.00030958,120]
[380363746,1755704388782,-3284.42,0.00030958,120]
[380363747,1755704388835,-753.99,0.00030958,120]
[380363748,1755704388896,-1302.47,0.00030958,120]
[380363749,1755704388953,-400.0,0.00030958,120]
[380363750,1755704389011,-921.54,0.00030958,120]
[380363751,1755704389073,-1366.98,0.00030958,120]
[380363752,1755704389137,-662.23,0.00030958,120]
[380363753,1755704389201,-412.94,0.00030958,120]
[380363754,1755704389264,-1441.89,0.00030958,120]
[380363755,1755704389324,-1129.75,0.00030958,120]
[380363756,1755704389384,-727.42,0.00030958,120]
[380363757,1755704389707,-400.0,0.00030958,120]
[380363758,1755704389768,-732.85,0.00030958,120]
[380363759,1755704389822,-809.13,0.00030958,120]
[380363760,1755704389881,-1494.53,0.00030958,120]
[380363761,1755704389936,-400.0,0.00030958,120]
[380363762,1755704389994,-1133.12,0.00030958,120]
[380363763,1755704390048,-514.29,0.00030958,120]
[380363764,1755704390113,-994.59,0.00030958,120]
[380363765,1755704390170,-1156.27,0.00030958,120]
[380363766,1755704390230,-1470.84,0.00030958,120]
[380363767,1755704390285,-1419.86,0.00030958,120]
[380363768,1755704390344,-400.0,0.00030958,120]
[380363769,1755704390398,-1114.65,0.00030958,120]
[380363770,1755704390454,-1330.33,0.00030958,120]
[380363771,1755704390511,-400.0,0.00030958,120]
[380363772,1755704390571,-400.0,0.00030958,120]
[380363773,1755704390628,-430.61,0.00030958,120]
[380363774,1755704390679,-400.0,0.00030958,120]
[380363775,1755704390734,-1080.04,0.00030958,120]
[380363776,1755704390784,-909.62,0.00030958,120]
[380363777,1755704390840,-1310.35,0.00030958,120]
[380363778,1755704390896,-756.7,0.00030958,120]
[380363779,1755704390957,-1177.72,0.00030958,120]
[380363780,1755704391022,-400.0,0.00030958,120]
[380363781,1755704391086,-866.56,0.00030958,120]
[380363782,1755704391152,-1134.09,0.00030958,120]
[380363783,1755704391216,-1116.91,0.00030958,120]
[380363784,1755704391282,-1698.19,0.00030958,120]
[380363785,1755704391349,-400.0,0.00030958,120]
[380363786,1755704391416,-698.15,0.00030958,120]
[380363787,1755704391492,-1476.81,0.00030958,120]
[380363788,1755704391565,-1075.8,0.00030958,120]
[380363789,1755704391644,-1099.37,0.00030958,120]
[380363790,1755704391719,-1704.43,0.00030958,120]
[380363791,1755704391784,-3119.31,0.00030958,120]
[380363792,1755704391845,-1429.41,0.00030958,120]
[380363793,1755704391903,-2175.99,0.00030958,120]
[380363794,1755704391963,-1092.97,0.00030958,120]
[380363795,1755704392021,-982.51,0.00030958,120]
[380363796,1755704392077,-1677.35,0.00030958,60]
[380363797,1755704392138,-1533.9,0.00030958,120]
[380363798,1755704392198,-696.27,0.00030958,120]
[380363799,1755704392258,-400.0,0.00030958,120]
[380363800,1755704392323,-400.0,0.00030958,120]
[380363801,1755704392388,-1517.11,0.00030958,120]
[380363802,1755704392451,-1000.1,0.00030958,120]
[380363803,1755704392512,-409.19,0.00030958,120]
[380363804,1755704392572,-400.0,0.00030958,120]
[380363805,1755704392632,-1488.6,0.00030958,120]
[380363806,1755704392692,-400.0,0.00030958,120]
[380363807,1755704392750,-1118.43,0.00030958,120]
[380363808,1755704392810,-1579.0,0.00030958,120]
[380363809,1755704392866,-400.0,0.00030958,120]
[380363810,1755704392925,-910.36,0.00030958,120]
[380363811,1755704392982,-1765.77,0.00030958,120]
[380363812,1755704393041,-400.0,0.00030958,120]
[380363813,1755704393106,-466.92,0.00030958,120]
[380363814,1755704393165,-1933.39,0.00030958,120]
[380363815,1755704393226,-400.0,0.00030958,120]
[380363816,1755704393295,-400.0,0.00030958,120]
[380363817,1755704393359,-1462.34,0.00030958,120]
[380363818,1755704393420,-1431.51,0.00030958,120]
[380363819,1755704393483,-1905.51,0.00030958,120]
[380363820,1755704393547,-734.83,0.00030958,120]
[380363821,1755704393614,-1278.87,0.00030958,120]
[380363822,1755704393673,-1239.09,0.00030958,120]
[380363823,1755704393733,-1462.75,0.00030958,120]
[380363824,1755704393794,-1629.62,0.00030958,120]
[380363825,1755704393856,-401.9,0.00030958,120]
[380363826,1755704393908,-1484.13,0.00030958,120]
[380363827,1755704393961,-851.22,0.00030958,120]
[380363828,1755704394011,-622.18,0.00030958,120]
[380363829,1755704394066,-527.75,0.00030958,120]
[380363830,1755704394119,-982.39,0.00030958,120]
[380363831,1755704394179,-400.0,0.00030958,120]
[380363832,1755704394241,-892.04,0.00030958,120]
[380363833,1755704394300,-808.7,0.00030958,120]
[380363834,1755704394362,-400.0,0.00030958,120]
[380363835,1755704394419,-1255.42,0.00030958,120]
[380363836,1755704394478,-4207.86,0.00030958,120]
[380363837,1755704394535,-1143.78,0.00030958,120]
[380363838,1755704394595,-1556.46,0.00030958,120]
[380363839,1755704394648,-930.43,0.00030958,120]
[380363840,1755704394710,-974.16,0.00030958,120]
[380363841,1755704394764,-400.0,0.00030958,120]
[380363842,1755704394828,-969.64,0.00030958,120]
[380363843,1755704394892,-1171.86,0.00030958,120]
[380363844,1755704394965,-1666.05,0.00030958,120]
[380363845,1755704395039,-1150.86,0.00030958,120]
[380363846,1755704395115,-1585.74,0.00030958,120]
[380363847,1755704395179,-1726.77,0.00030958,120]
[380363848,1755704395240,-482.81,0.00030958,120]
[380363849,1755704395300,-400.0,0.00030958,120]
[380363850,1755704395365,-1492.51,0.00030958,120]
[380363851,1755704395813,-1315.68,0.00030958,120]
[380363852,1755704395880,-3095.19,0.00030958,118]
[380363853,1755704395939,-694.92,0.00030958,120]
[380363854,1755704395996,-651.71,0.00030958,120]
[380363855,1755704396060,-400.0,0.00030958,120]
[380363856,1755704396125,-1519.67,0.00030958,120]
[380363857,1755704396189,-400.0,0.00030958,120]
[380363858,1755704396252,-2787.79,0.00030958,120]
[380363859,1755704396313,-400.0,0.00030958,120]
[380363860,1755704396373,-946.3,0.00030958,120]
[380363861,1755704396432,-2545.72,0.00030958,120]
[380363862,1755704396490,-919.15,0.00030958,120]
[380363863,1755704396547,-400.0,0.00030958,120]
[380363864,1755704396605,-784.01,0.00030958,120]
[380363865,1755704396662,-496.18727623,0.00030958,120]
[380363866,1755704396719,-400.0,0.00030958,120]
[380363867,1755704396777,-1155.56,0.00030958,120]
[380363868,1755704396830,-400.0,0.00030958,120]
[380363869,1755704396886,-400.0,0.00030958,120]
[380363870,1755704396937,-1287.18,0.00030958,120]
[380363871,1755704396990,-407.22,0.00030958,120]
[380363872,1755704397043,-2620.62,0.00030958,120]
[380363873,1755704397107,-1714.44,0.00030958,120]
[380363874,1755704397167,-666.35,0.00030958,120]
[380363875,1755704397223,-457.28,0.00030958,120]
[380363876,1755704397284,-3107.9,0.00030958,120]
[380363877,1755704397342,-1036.24,0.00030958,120]
[380363878,1755704397400,-400.0,0.00030958,120]
[380363879,1755704397456,-1108.84,0.00030958,120]
[380363880,1755704397510,-400.0,0.00030958,120]
[380363881,1755704397567,-400.0,0.00030958,120]
[380363882,1755704397627,-1645.5,0.00030958,120]
[380363883,1755704397681,-1622.45,0.00030958,120]
[380363884,1755704397733,-1297.7,0.00030958,120]
[380363885,1755704397785,-1491.86,0.00030958,120]
[380363886,1755704397838,-1560.41,0.00030958,120]
[380363887,1755704397886,-400.0,0.00030958,120]
[380363888,1755704397939,-523.51,0.00030958,120]
[380363889,1755704397987,-624.41,0.00030958,120]
[380363890,1755704398045,-860.87,0.00030958,120]
[380363891,1755704398111,-400.0,0.00030958,120]
[380363892,1755704398170,-2036.4,0.00030958,120]
[380363893,1755704398233,-1235.24,0.00030958,120]
[380363894,1755704398292,-1168.66,0.00030958,120]
[380363895,1755704398355,-1153.09,0.00030958,120]
[380363896,1755704398414,-502.04,0.00030958,120]
[380363897,1755704398471,-1574.86,0.00030958,120]
[380363898,1755704398527,-1030.1,0.00030958,120]
[380363899,1755704398584,-678.9,0.00030958,120]
[380363900,1755704398637,-1105.8,0.00030958,120]
[380363901,1755704398694,-1808.38,0.00030958,120]
[380363902,1755704398746,-981.04,0.00030958,120]
[380363903,1755704398802,-1107.87,0.00030958,120]